Workbook

Sheet Меню НЗ
B2: Согласовано: | L2: Утверждаю:
B3: Директор ___________________ | L3: Директор ООО"Профессионал"
B4: ___________________________ | L4: ______________________
B5: ___________________________ | L5: И.А.Бессольцын
C8: Примерное двухнедельное меню для учащихся с 7 до 11 лет в общеобразовательных организациях Агрызского района в 2021 - 2022 уч.году (весенний сезон)
A11: № рецептуры | B11: Наименование блюд | C11: Выход | D11: Белки, г | E11: Жиры, г | F11: Углеводы, г | G11: Калорий ность, | H11: Витами н В1, мг | I11: Витами н С, мг | J11: Витами н А, мг | K11: Витамин Е, мг | L11: Са, мг | M11: Р, мг | N11: Мд, мг | O11: Fe, мг
B12: 1-ая неделя
B13: 1 день
A15: № 268 Сбор.рец. на прод-ию для обуч. во всех образ.учреж Дели 2015 | B15: КОТЛЕТЫ (из говядины) | C15: 90 | D15: 10.87 | E15: 13.96 | F15: 10.63 | G15: 204.75 | H15: 0.19 | I15: 4.34 | J15: 0.00 | K15: 1.56 | L15: 61.85 | M15: 174.40 | N15: 24.67 | O15: 1.89
A16: № 303 Сбор.рец. на прод-ию для обуч. во всех образ.учреж Дели 2015 | B16: КАША ВЯЗКАЯ (ГРЕЧНЕВАЯ) | C16: 150 | D16: 6.66 | E16: 9.02 | F16: 34.00 | G16: 170.00 | H16: 0.29 | I16: - | K16: 0.52 | L16: 37.35 | M16: 170.55 | N16: 44.55 | O16: 1.10
A17: № 378 Сбор.рец. на прод-ию для обуч. во всех образ.учреж Дели 2015 | B17: ЧАЙ С МОЛОКОМ | C17: 150/50/15 | D17: 1.52 | E17: 1.35 | F17: 15.90 | G17: 81.00 | H17: 0.04 | I17: 1.33 | J17: 0.16 | K17: - | L17: 136.60 | M17: 92.80 | N17: 5.40 | O17: 0.11
B18: ХЛЕБ ПШЕНИНИЧНЫЙ | C18: 30 | D18: 2.28 | E18: 0.24 | F18: 14.76 | G18: 71.00 | H18: 0.03 | I18: - | J18: - | K18: 0.33 | L18: 6.00 | M18: 19.50 | N18: 4.20 | O18: 0.33
B19: ХЛЕБ РЖАНОЙ (РЖАНО-ПШЕНИЧНЫЙ) | C19: 20 | D19: 1.00 | E19: 0.20 | F19: 9.00 | G19: 44.00 | H19: 0.01 | I19: - | J19: - | K19: 0.11 | L19: 2.76 | M19: 12.72 | N19: 3.00 | O19: 0.37
B20: Итого: | C20: =SUM(C14:C19) -> 290 | D20: =SUM(D14:D19) -> 22.33 | E20: 24.78 | F20: 84.29 | G20: 570.75 | H20: 0.57 | I20: 5.67 | J20: 0.16 | K20: 2.51 | L20: 244.56 | M20: 469.98 | N20: 81.82 | O20: 3.80
B22: 2 день
A23: № 338 Сбор.рец. на прод-ию для обуч. во всех образ.учреж Дели 2015 | B23: ПЛОДЫ И ЯГОДЫ СВЕЖИЕ (ЯБЛОКИ) | C23: 100 | D23: 0.40 | E23: 0.40 | F23: 7.35 | G23: 47.00 | H23: 0.03 | I23: 8.00 | J23: - | K23: 0.10 | L23: 16.00 | M23: 11.00 | N23: 9.00 | O23: 0.03
A24: № 289 Сбор.рец. на прод-ию для обуч. во всех образ.учреж Дели 2015 | B24: РАГУ ИЗ ПТИЦЫ | C24: 50/150 | D24: 12.30 | E24: 17.66 | F24: 29.85 | G24: 313.00 | H24: 0.20 | I24: 8.08 | J24: 0.18 | K24: 2.10 | L24: 57.66 | M24: 201.911 | N24: 26.394 | O24: 0.11
A25: № 382 Сбор.рец. на прод-ию для обуч. во всех образ.учреж Дели 2015 | B25: КАКАО С МОЛОКОМ | C25: 200 | D25: 3.78 | E25: 0.67 | F25: 26.00 | G25: 125.00 | H25: 0.02 | I25: 1.33 | K25: 0.01 | L25: 133.33 | M25: 111.11 | N25: 25.56 | O25: 2.00
B26: ХЛЕБ ПШЕНИНИЧНЫЙ | C26: 30 | D26: 2.28 | E26: 0.24 | F26: 14.76 | G26: 71.00 | H26: 0.03 | I26: - | J26: - | K26: 0.33 | L26: 6.00 | M26: 19.50 | N26: 4.20 | O26: 0.33
B27: ХЛЕБ РЖАНОЙ (РЖАНО-ПШЕНИЧНЫЙ) | C27: 20 | D27: 1.00 | E27: 0.20 | F27: 9.00 | G27: 44.00 | H27: 0.01 | I27: - | J27: - | K27: 0.11 | L27: 2.76 | M27: 12.72 | N27: 3.00 | O27: 0.37
B28: Итого: | C28: =SUM(C23:C27) -> 350 | D28: =SUM(D23:D27) -> 19.76 | E28: 19.17 | F28: 86.96 | G28: 600.00 | H28: 0.30 | I28: 17.41 | J28: 0.18 | K28: 2.65 | L28: 215.75 | M28: 154.33 | N28: 41.76 | O28: 2.84
B30: 3 день
A32: № 256 Сбор.рец. на прод-ию для обуч. во всех образ.учреж Дели 2015 | B32: МЯСО ТУШЕНОЕ | C32: 50/50 | D32: 10.50 | E32: 11.03 | F32: 3.18 | G32: 196.00 | H32: 0.14 | I32: 3.89 | K32: 0.36 | L32: 66.81 | M32: 215.17 | N32: 30.16 | O32: 1.43
A33: № 203 Сбор.рец. на прод-ию для обуч. во всех образ.учреж Дели 2015 | B33: МАКАРОННЫЕ ИЗДЕЛИЯ ОТВАРНЫЕ С МАСЛОМ | C33: 150/5 | D33: 5.10 | E33: 4.47 | F33: 28.50 | G33: 187.00 | H33: 0.09 | I33: - | J33: 0.10 | K33: 0.82 | L33: 16.46 | M33: 57.01 | N33: 8.48 | O33: 0.87
A34: № 377 Сбор.рец. на прод-ию для обуч. во всех образ.учреж Дели 2015 | B34: ЧАЙ С ЛИМОНОМ | C34: 200/15/7 | D34: 0.08 | E34: 0.01 | F34: 15.19 | G34: 62.00 | H34: 0.00 | I34: 2.80 | K34: 0.01 | L34: 3.25 | M34: 1.54 | N34: 0.84 | O34: 0.09
B35: ХЛЕБ ПШЕНИНИЧНЫЙ | C35: 30 | D35: 2.28 | E35: 0.24 | F35: 14.76 | G35: 71.00 | H35: 0.03 | I35: - | J35: - | K35: 0.33 | L35: 6.00 | M35: 19.50 | N35: 4.20 | O35: 0.33
B36: ХЛЕБ РЖАНОЙ (РЖАНО-ПШЕНИЧНЫЙ) | C36: 20 | D36: 1.00 | E36: 0.20 | F36: 9.00 | G36: 44.00 | H36: 0.01 | I36: - | J36: - | K36: 0.11 | L36: 2.76 | M36: 12.72 | N36: 3.00 | O36: 0.37
B37: Итого: | C37: =SUM(C31:C36) -> 50 | D37: =SUM(D31:D36) -> 18.96 | E37: 15.95 | F37: 70.63 | G37: 560.00 | H37: 0.28 | I37: 6.69 | J37: 0.10 | K37: 1.63 | L37: 95.27 | M37: 305.94 | N37: 46.68 | O37: 3.09
B39: 4 день
A40: № 52 Сбор.рец. на прод-ию для обуч. во всех образ.учреж Дели 2015 | B40: САЛАТ ИЗ СВЕКЛЫ ОТВАРНОЙ | C40: 60 | D40: 0.855 | E40: 3.65 | F40: 11.58 | G40: 56.00 | H40: 0.01 | I40: 7.70 | K40: 0.64 | L40: 121.09 | M40: 84.58 | N40: 12.54 | O40: 0.20
A41: № 295 Сбор.рец. на прод-ию для обуч. во всех образ.учреж Дели 2015 | B41: КОТЛЕТЫ РУБЛЕННЫЕ ИЗ БРОЙЛЕР-ЦЫПЛЯТ | C41: 90 | D41: 11.52 | E41: 6.04 | F41: 21.78 | G41: 178.88 | H41: 0.09 | I41: 0.00 | J41: 0.00 | K41: 0.00 | L41: 100.61 | M41: 177.75 | N41: 0.72 | O41: 0.34
A42: № 312 Сбор.рец. на прод-ию для обуч. во всех образ.учреж Дели 2015 | B42: ПЮРЕ КАРТОФЕЛЬНОЕ | C42: 150 | D42: 3.09 | E42: 8.28 | F42: 22.00 | G42: 172.00 | H42: 0.16 | I42: 7.94 | J42: 0.08 | K42: 3.00 | L42: 47.81 | M42: 98.84 | N42: 8.00 | O42: 0.00
A43: № 376 Сбор.рец. на прод-ию для обуч. во всех образ.учреж Дели 2016 | B43: ЧАЙ С САХАРОМ | C43: 200/15 | D43: 0.53 | E43: - | F43: 9.47 | G43: 40.00 | H43: - | I43: 0.27 | J43: - | K43: - | L43: 13.60 | M43: 22.13 | N43: 11.73 | O43: 0.10
B44: ХЛЕБ ПШЕНИНИЧНЫЙ | C44: 30 | D44: 2.28 | E44: 0.24 | F44: 14.76 | G44: 71.00 | H44: 0.03 | I44: - | J44: - | K44: 0.33 | L44: 6.00 | M44: 19.50 | N44: 4.20 | O44: 0.33
B45: ХЛЕБ РЖАНОЙ (РЖАНО-ПШЕНИЧНЫЙ) | C45: 20 | D45: 1.00 | E45: 0.20 | F45: 9.00 | G45: 44.00 | H45: 0.01 | I45: - | J45: - | K45: 0.11 | L45: 2.76 | M45: 12.72 | N45: 3.00 | O45: 0.37
B46: Итого: | C46: =SUM(C40:C45) -> 350 | D46: =SUM(D40:D45) -> 18.42 | E46: 18.42 | F46: 88.59 | G46: 561.88 | H46: 0.31 | I46: 15.91 | J46: 0.08 | K46: 4.08 | L46: 291.86 | M46: 415.52 | N46: 40.19 | O46: 1.34
B48: 5 день
A50: № 268 Сбор.рец. на прод-ию для обуч. во всех образ.учреж Дели 2015 | B50: КОТЛЕТЫ (из говядины) | C50: 90 | D50: 10.87 | E50: 13.96 | F50: 10.63 | G50: 204.75 | H50: 0.19 | I50: 4.34 | J50: 0.00 | K50: 1.56 | L50: 61.85 | M50: 174.40 | N50: 24.67 | O50: 1.89
A51: № 304 Сбор.рец. на прод-ию для обуч. во всех образ.учреж Дели 2015 | B51: РИС ОТВАРНОЙ | C51: 150 | D51: 3.83 | E51: 5.43 | F51: 29.60 | G51: 210.00 | H51: 0.04 | I51: - | J51: 0.18 | K51: 0.28 | L51: 11.46 | M51: 84.15 | N51: 13.33 | O51: 0.01
A52: № 378 Сбор.рец. на прод-ию для обуч. во всех образ.учреж Дели 2015 | B52: ЧАЙ С МОЛОКОМ | C52: 150/50/15 | D52: 1.52 | E52: 1.35 | F52: 15.90 | G52: 81.00 | H52: 0.04 | I52: 1.33 | J52: 0.16 | K52: - | L52: 136.60 | M52: 92.80 | N52: 5.40 | O52: 0.11
B53: ХЛЕБ ПШЕНИНИЧНЫЙ | C53: 30 | D53: 2.28 | E53: 0.24 | F53: 14.76 | G53: 71.00 | H53: 0.03 | I53: - | J53: - | K53: 0.33 | L53: 6.00 | M53: 19.50 | N53: 4.20 | O53: 0.33
B54: ХЛЕБ РЖАНОЙ (РЖАНО-ПШЕНИЧНЫЙ) | C54: 20 | D54: 1.00 | E54: 0.20 | F54: 9.00 | G54: 44.00 | H54: 0.01 | I54: - | J54: - | K54: 0.11 | L54: 2.76 | M54: 12.720 | N54: 3.00 | O54: 0.37
B55: Итого: | C55: =SUM(C49:C54) -> 290 | D55: =SUM(D49:D54) -> 19.50 | E55: 21.19 | F55: 79.89 | G55: 610.75 | H55: 0.32 | I55: 5.67 | J55: 0.34 | K55: 2.28 | L55: 218.67 | M55: 370.85 | N55: 50.60 | O55: 2.71
B57: 6 день
A58: № 338 Сбор.рец. на прод-ию для обуч. во всех образ.учреж Дели 2015 | B58: ПЛОДЫ И ЯГОДЫ СВЕЖИЕ (АПЕЛЬСИНЫ) | C58: 100 | D58: 0.40 | E58: 0.40 | F58: 7.35 | G58: 47.00 | H58: 0.03 | I58: 8.00 | J58: - | K58: 0.20 | L58: 46.00 | M58: 11.00 | N58: 0.10 | O58: 0.00
A59: № 47 Сбор.рец. на прод-ию для обуч. во всех образ.учреж Дели 2015 | B59: САЛАТ ИЗ КВАШЕНОЙ КАПУСТЫ | C59: 60 | D59: 2.60 | E59: 5.06 | F59: 4.94 | G59: 56.00 | H59: 0.01 | I59: 5.18 | J59: - | K59: 1.38 | L59: 25.28 | M59: 18.61 | N59: 8.62 | O59: 0.01
A60: № 392 Сбор.рец. на прод-ию для обуч. во всех образ.учреж Дели 2015 | B60: ПЕЛЬМЕНИ МЯСНЫЕ ОТВАРНЫЕ | C60: 180/5 | D60: 10.34 | E60: 12.18 | F60: 20.34 | G60: 237.00 | H60: 0.16 | I60: 0.49 | J60: 0.18 | K60: 1.28 | L60: 79.45 | M60: 239.02 | N60: 10.58 | O60: 0.01
A61: № 379 Сбор.рец. на прод-ию для обуч. во всех образ.учреж Дели 2016 | B61: КОФЕЙНЫЙ НАПИТОК С МОЛОКОМ | C61: 200 | D61: 3.60 | E61: 2.67 | F61: 29.20 | G61: 155.00 | H61: 0.03 | I61: 1.47 | L61: 158.67 | M61: 132.00 | N61: 29.33 | O61: 2.40
B62: ХЛЕБ ПШЕНИНИЧНЫЙ | C62: 30 | D62: 2.28 | E62: 0.24 | F62: 14.76 | G62: 71.00 | H62: 0.03 | I62: - | J62: - | K62: 0.33 | L62: 6.00 | M62: 19.50 | N62: 4200.00 | O62: 0.33
B63: ХЛЕБ РЖАНОЙ (РЖАНО-ПШЕНИЧНЫЙ) | C63: 20 | D63: 1.00 | E63: 0.20 | F63: 9.00 | G63: 44.00 | H63: 0.01 | I63: - | J63: - | K63: 0.11 | L63: 2.76 | M63: 12.72 | N63: 3.00 | O63: 0.37
B64: Итого: | C64: =SUM(C58:C63) -> 410 | D64: =SUM(D58:D63) -> 20.22 | E64: 20.74 | F64: 85.59 | G64: 610.00 | H64: 0.28 | I64: 15.14 | J64: 0.18 | K64: 3.30 | L64: 318.16 | M64: 432.84 | N64: 4251.63 | O64: 3.12
B68: Наименование блюд | C68: Выход | D68: Белки,г | E68: Жиры, г | F68: Углевод ы, г | G68: Калори йность, | H68: Витамин В1, мг | I68: Витамин С, мг | J68: Витами н А, мг | K68: Витами н Е, мг | L68: Са, мг | M68: Р, мг | N68: Мд, мг | O68: Fe, мг
B69: 2-ая неделя
B70: 1 день
A71: № 338 Сбор.рец. на прод-ию для обуч. во всех образ.учреж Дели 2015 | B71: ПЛОДЫ И ЯГОДЫ СВЕЖИЕ (ЯБЛОКИ) | C71: 100 | D71: 0.40 | E71: 0.40 | F71: 7.35 | G71: 47.00 | H71: 0.03 | I71: 8.00 | J71: - | K71: 0.10 | L71: 16.00 | M71: 11.00 | N71: 9.00 | O71: 0.03
A72: № 45 Сбор.техн.норм-ов ДеЛи принт 2011 | B72: ВИНЕГРЕТ ОВОЩНОЙ С ЛУКОМ РЕПЧАТЫМ | C72: 60 | D72: 0.82 | E72: 3.70 | F72: 5.10 | G72: 56.88 | H72: 0.03 | I72: 6.15 | J72: 0.00 | K72: 0.40 | L72: 126.88 | M72: 120.41 | N72: 41.33 | O72: 1.90
A73: № 280 Сбор.рец. на прод-ию для обуч. во всех образ.учреж Дели 2015 | B73: ФРИКАДЕЛЬКИ В СОУСЕ | C73: 55/50 | D73: 8.33 | E73: 7.74 | F73: 3.19 | G73: 175.00 | H73: 0.03 | I73: 0.65 | J73: 0.10 | K73: 1.26 | L73: 100.53 | M73: 110.07 | N73: 0.08 | O73: 1.00
A74: № 171 Сбор.рец. на прод-ию для обуч. во всех образ.учреж Дели 2016 | B74: КАША РАССЫПЧАТАЯ (ГРЕЧНЕВАЯ) | C74: 150 | D74: 6.66 | E74: 9.02 | F74: 34.00 | G74: 170.00 | H74: 0.29 | I74: - | K74: 0.52 | L74: 37.35 | M74: 170.55 | N74: 40.55 | O74: 1.10
A75: № 376 Сбор.рец. на прод-ию для обуч. во всех образ.учреж Дели 2016 | B75: ЧАЙ С САХАРОМ | C75: 200/15 | D75: 0.53 | E75: - | F75: 9.47 | G75: 40.00 | H75: - | I75: 0.27 | J75: - | K75: - | L75: 13.60 | M75: 22.13 | N75: 11.73 | O75: 0.10
B76: ХЛЕБ ПШЕНИНИЧНЫЙ | C76: 30 | D76: 2.28 | E76: 0.24 | F76: 14.76 | G76: 71.00 | H76: 0.03 | I76: - | J76: - | K76: 0.33 | L76: 6.00 | M76: 19.50 | N76: 4.20 | O76: 0.33
B77: ХЛЕБ РЖАНОЙ (РЖАНО-ПШЕНИЧНЫЙ) | C77: 20 | D77: 1.00 | E77: 0.20 | F77: 9.00 | G77: 44.00 | H77: 0.01 | I77: - | J77: - | K77: 0.11 | L77: 2.76 | M77: 12.72 | N77: 3.00 | O77: 0.37
B78: Итого: | C78: =SUM(C71:C77) -> 360 | D78: =SUM(D71:D77) -> 20.02 | E78: 21.31 | F78: 82.87 | G78: 603.88 | H78: 0.43 | I78: 15.07 | J78: 0.10 | K78: 2.71 | L78: 303.12 | M78: 466.38 | N78: 109.89 | O78: 4.83
B80: 2 день
A81: № 52 Сбор.рец. на прод-ию для обуч. во всех образ.учреж Дели 2015 | B81: САЛАТ ИЗ СВЕКЛЫ ОТВАРНОЙ | C81: 60 | D81: 0.86 | E81: 3.65 | F81: 11.58 | G81: 56.00 | H81: 0.01 | I81: 7.70 | K81: 0.64 | L81: 121.09 | M81: 84.58 | N81: 12.54 | O81: 0.20
A82: № 291 Сбор.рец. на прод-ию для обуч. во всех образ.учреж Дели 2016 | B82: ПЛОВ ИЗ ПТИЦЫ | C82: 50/150 | D82: 14.51 | E82: 14.71 | F82: 28.34 | G82: 364.00 | H82: 0.21 | I82: 4.90 | J82: 0.10 | K82: 1.20 | L82: 83.07 | M82: 273.00 | N82: 40.45 | O82: 1.90
A83: № 377Сбор.рец. на прод-ию для обуч. во всех образ.учреж Дели 2016 | B83: ЧАЙ С ЛИМОНОМ | C83: 200/15/7 | D83: 0.08 | E83: 0.01 | F83: 15.19 | G83: 62.00 | H83: 0.00 | I83: 2.80 | K83: 0.01 | L83: 3.25 | M83: 1.54 | N83: 0.84 | O83: 0.09
B84: ХЛЕБ ПШЕНИНИЧНЫЙ | C84: 30 | D84: 2.28 | E84: 0.24 | F84: 14.76 | G84: 71.00 | H84: 0.03 | I84: - | J84: - | K84: 0.33 | L84: 6.00 | M84: 19.50 | N84: 4.20 | O84: 0.33
B85: ХЛЕБ РЖАНОЙ (РЖАНО-ПШЕНИЧНЫЙ) | C85: 20 | D85: 1.00 | E85: 0.20 | F85: 9.00 | G85: 44.00 | H85: 0.01 | I85: - | J85: - | K85: 0.11 | L85: 2.76 | M85: 12.72 | N85: 3.00 | O85: 0.37
B86: Итого: | C86: =SUM(C81:C85) -> 110 | D86: =SUM(D81:D85) -> 18.73 | E86: 18.82 | F86: 78.87 | G86: 597.00 | H86: 0.27 | I86: 15.40 | J86: 0.10 | K86: 2.29 | L86: 216.17 | M86: 391.34 | N86: 61.03 | O86: 2.89
B88: 3 день
A90: № 234 Сбор.рец. на прод-ию для обуч. во всех образ.учреж Дели 2015 | B90: БИТОЧКИ РЫБНЫЕ | C90: 90 | D90: 7.26 | E90: 4.77 | F90: 8.43 | G90: 130.50 | H90: 0.06 | I90: 0.54 | J90: 0.11 | K90: 0.73 | L90: 49.52 | M90: 154.19 | N90: 13.50 | O90: 0.00
A91: № 312 Сбор.рец. на прод-ию для обуч. во всех образ.учреж Дели 2016 | B91: ПЮРЕ КАРТОФЕЛЬНОЕ | C91: 160 | D91: 3.30 | E91: 8.83 | F91: 23.47 | G91: 183.47 | H91: 0.17 | I91: 8.47 | J91: 0.09 | K91: 0.25 | L91: 50.99 | M91: 105.42 | N91: 8.53 | O91: 0.00
A92: № 379 Сбор.рец. на прод-ию для обуч. во всех образ.учреж Дели 2016 | B92: КОФЕЙНЫЙ НАПИТОК С МОЛОКОМ | C92: 200 | D92: 3.60 | E92: 2.67 | F92: 29.20 | G92: 155.00 | H92: 0.03 | I92: 1.47 | L92: 158.67 | M92: 132.00 | N92: 29.33 | O92: 2.40
B93: ХЛЕБ ПШЕНИНИЧНЫЙ | C93: 30 | D93: 2.28 | E93: 0.24 | F93: 14.76 | G93: 71.00 | H93: 0.03 | I93: - | J93: - | K93: 0.33 | L93: 6.00 | M93: 19.50 | N93: 4.20 | O93: 0.33
B94: ХЛЕБ РЖАНОЙ (РЖАНО-ПШЕНИЧНЫЙ) | C94: 20 | D94: 1.00 | E94: 0.20 | F94: 9.00 | G94: 44.00 | H94: 0.01 | I94: - | J94: - | K94: 0.11 | L94: 2.76 | M94: 12.72 | N94: 3.00 | O94: 0.37
B95: Итого: | C95: =SUM(C89:C94) -> 500 | D95: =SUM(D89:D94) -> 17.43 | E95: 16.71 | F95: 84.85 | G95: 583.97 | H95: 0.31 | I95: 10.48 | J95: 0.20 | K95: 1.41 | L95: 267.94 | M95: 423.84 | N95: 58.56 | O95: 3.10
B97: 4 день
A99: № 268 Сбор.рец. на прод-ию для обуч. во всех образ.учреж Дели 2015 | B99: КОТЛЕТЫ (из говядины) | C99: 90 | D99: 10.87 | E99: 13.96 | F99: 10.63 | G99: 204.75 | H99: 0.19 | I99: 4.34 | J99: 0.00 | K99: 1.56 | L99: 61.85 | M99: 174.40 | N99: 24.67 | O99: 1.89
A100: № 203 Сбор.рец. на прод-ию для обуч. во всех образ.учреж Дели 2016 | B100: МАКАРОННЫЕ ИЗДЕЛИЯ ОТВАРНЫЕ С МАСЛОМ | C100: 150/5 | D100: 5.10 | E100: 4.47 | F100: 28.50 | G100: 187.00 | H100: 0.09 | I100: - | J100: 0.10 | K100: 0.82 | L100: 16.46 | M100: 57.01 | N100: 8.48 | O100: 0.87
A101: № 377 Сбор.рец. на прод-ию для обуч. во всех образ.учреж Дели 2016 | B101: ЧАЙ С ЛИМОНОМ | C101: 200/15/7 | D101: 0.08 | E101: 0.01 | F101: 15.19 | G101: 62.00 | H101: 0.00 | I101: 2.80 | K101: 0.01 | L101: 3.25 | M101: 1.54 | N101: 0.84 | O101: 0.09
B102: ХЛЕБ ПШЕНИНИЧНЫЙ | C102: 30 | D102: 2.28 | E102: 0.24 | F102: 14.76 | G102: 71.00 | H102: 0.03 | I102: - | J102: - | K102: 0.33 | L102: 6.00 | M102: 19.50 | N102: 4.20 | O102: 0.33
B103: ХЛЕБ РЖАНОЙ (РЖАНО-ПШЕНИЧНЫЙ) | C103: 20 | D103: 1.00 | E103: 0.20 | F103: 9.00 | G103: 44.00 | H103: 0.01 | I103: - | J103: - | K103: 0.11 | L103: 2.76 | M103: 12.72 | N103: 3.00 | O103: 0.37
B104: Итого: | C104: =SUM(C98:C103) -> 140 | D104: =SUM(D98:D103) -> 19.33 | E104: 18.88 | F104: 78.08 | G104: 568.75 | H104: 0.32 | I104: 7.14 | J104: 0.10 | K104: 2.83 | L104: 90.31 | M104: 265.17 | N104: 41.19 | O104: 3.55
B106: 5 день
A107: № 47 Сбор.рец. на прод-ию для обуч. во всех образ.учреж Дели 2015 | B107: САЛАТ ИЗ КВАШЕНОЙ КАПУСТЫ | C107: 60 | D107: 2.60 | E107: 5.06 | F107: 4.94 | G107: 56.00 | H107: 0.01 | I107: 5.18 | J107: - | K107: 1.38 | L107: 25.28 | M107: 18.61 | N107: 8.62 | O107: 0.01
A108: № 290 Сбор.рец. на прод-ию для обуч. во всех образ.учреж Дели 2016 | B108: ПТИЦА ТУШЕННАЯ В СОУСЕ | C108: 50/50 | D108: 11.65 | E108: 10.76 | F108: 11.63 | G108: 164.00 | H108: 0.17 | I108: 6.33 | K108: 0.96 | L108: 85.19 | M108: 163.20 | N108: 15.72 | O108: 1.80
A109: № 304 Сбор.рец. на прод-ию для обуч. во всех образ.учреж Дели 2016 | B109: РИС ОТВАРНОЙ | C109: 150 | D109: 3.83 | E109: 5.43 | F109: 29.60 | G109: 210.00 | H109: 0.04 | I109: - | J109: 0.18 | K109: 0.28 | L109: 11.46 | M109: 84.15 | N109: 13.33 | O109: 0.01
A110: № 376 Сбор.рец. на прод-ию для обуч. во всех образ.учреж Дели 2017 | B110: ЧАЙ С САХАРОМ | C110: 200/15 | D110: 0.53 | E110: - | F110: 9.47 | G110: 40.00 | H110: - | I110: 0.27 | J110: - | K110: - | L110: 13.60 | M110: 22.13 | N110: 11.73 | O110: 0.10
B111: ХЛЕБ ПШЕНИНИЧНЫЙ | C111: 30 | D111: 2.28 | E111: 0.24 | F111: 14.76 | G111: 71.00 | H111: 0.03 | I111: - | J111: - | K111: 0.33 | L111: 6.00 | M111: 19.50 | N111: 4.20 | O111: 0.33
B112: ХЛЕБ РЖАНОЙ (РЖАНО-ПШЕНИЧНЫЙ) | C112: 20 | D112: 1.00 | E112: 0.20 | F112: 9.00 | G112: 44.00 | H112: 0.01 | I112: - | J112: - | K112: 0.11 | L112: 2.76 | M112: 12.72 | N112: 3.00 | O112: 0.37
B113: Итого: | C113: =SUM(C107:C112) -> 260 | D113: =SUM(D107:D112) -> 21.89 | E113: 21.69 | F113: 79.41 | G113: 585.00 | H113: 0.27 | I113: 11.78 | J113: 0.18 | K113: 3.06 | L113: 144.28 | M113: 320.30 | N113: 56.59 | O113: 2.62
B115: 6 день
A116: № 338 Сбор.рец. на прод-ию для обуч. во всех образ.учреж Дели 2015 | B116: ПЛОДЫ И ЯГОДЫ СВЕЖИЕ (ЯБЛОКИ) | C116: 100 | D116: 0.40 | E116: 0.40 | F116: 7.35 | G116: 47.00 | H116: 0.03 | I116: 8.00 | J116: - | K116: 0.10 | L116: 16.00 | M116: 11.00 | N116: 9.00 | O116: 0.03
A117: № 45 Сбор.техн.норм-ов ДеЛи принт 2011 | B117: ВИНЕГРЕТ ОВОЩНОЙ С ЛУКОМ РЕПЧАТЫМ | C117: 60 | D117: 0.82 | E117: 3.70 | F117: 5.10 | G117: 56.88 | H117: 0.03 | I117: 6.15 | J117: 0.00 | K117: 0.40 | L117: 126.88 | M117: 120.41 | N117: 41.33 | O117: 1.90
A118: № 392 Сбор.рец. на прод-ию для обуч. во всех образ.учреж Дели 2016 | B118: ПЕЛЬМЕНИ МЯСНЫЕ ОТВАРНЫЕ | C118: 180/5 | D118: 10.34 | E118: 12.18 | F118: 20.34 | G118: 237.00 | H118: 0.16 | I118: 0.49 | J118: 0.18 | K118: 1.28 | L118: 79.45 | M118: 239.02 | N118: 10.58 | O118: 0.01
A119: № 382 Сбор.рец. на прод-ию для обуч. во всех образ.учреж Дели 2016 | B119: КАКАО С МОЛОКОМ | C119: 200 | D119: 3.78 | E119: 0.67 | F119: 26.00 | G119: 125.00 | H119: 0.02 | I119: 1.33 | K119: 0.01 | L119: 133.33 | M119: 111.11 | N119: 25.56 | O119: 2.00
B120: ХЛЕБ ПШЕНИНИЧНЫЙ | C120: 30 | D120: 2.28 | E120: 0.24 | F120: 14.76 | G120: 71.00 | H120: 0.03 | I120: - | J120: - | K120: 0.33 | L120: 6.00 | M120: 19.50 | N120: 4.20 | O120: 0.33
B121: ХЛЕБ РЖАНОЙ (РЖАНО-ПШЕНИЧНЫЙ) | C121: 20 | D121: 1.00 | E121: 0.20 | F121: 9.00 | G121: 44.00 | H121: 0.01 | I121: - | J121: - | K121: 0.11 | L121: 2.76 | M121: 12.72 | N121: 3.00 | O121: 0.37
B122: Итого: | C122: =SUM(C116:C121) -> 410 | D122: =SUM(D116:D121) -> 18.62 | E122: 17.39 | F122: 82.55 | G122: 580.88 | H122: 0.29 | I122: 15.97 | J122: 0.18 | K122: 2.23 | L122: 364.42 | M122: 513.76 | N122: 93.67 | O122: 4.64

Sheet Меню-требование НЗ
A1: 1 НЕДЕЛЯ
A2: Накопительная ведомость | E2: Утверждаю: | J2: Накопительная ведомость | N2: Утверждаю: | S2: Накопительная ведомость | W2: Утверждаю: | AB2: Накопительная ведомость | AF2: Утверждаю: | AK2: Накопительная ведомость | AO2: Утверждаю: | AT2: Накопительная ведомость | AX2: Утверждаю:
A3: на выдачу продуктов питания | D3: Руководитель учреждения ______________ | J3: на выдачу продуктов питания | M3: Руководитель учреждения ______________ | S3: на выдачу продуктов питания | V3: Руководитель учреждения ______________ | AB3: на выдачу продуктов питания | AE3: Руководитель учреждения ______________ | AK3: на выдачу продуктов питания | AN3: Руководитель учреждения ______________ | AT3: на выдачу продуктов питания | AW3: Руководитель учреждения ______________
D4: на 1 день, на 1 человека | M4: на 2 день, на 1 человека | V4: на 3 день, на 1 человека | AE4: на 4 день, на 1 человека | AN4: на 5 день, на 1 человека | AW4: на 6 день, на 1 человека
AE5: -35%
A6: МЕНЮ | B6: количество продуктов питания подлежащих закладке | H6: итого | J6: МЕНЮ | K6: количество продуктов питания подлежащих закладке | Q6: итого | S6: МЕНЮ | T6: количество продуктов питания подлежащих закладке | Z6: итого | AB6: МЕНЮ | AC6: количество продуктов питания подлежащих закладке | AI6: итого | AK6: МЕНЮ | AL6: количество продуктов питания подлежащих закладке | AR6: итого | AT6: МЕНЮ | AU6: количество продуктов питания подлежащих закладке | BA6: итого | BC6: итого за 1 неделю
C7: котлеты | D7: каша гречнев вязкая | E7: чай с молоком | F7: хлеб | L7: рагу из птицы | N7: какао с молоком | O7: хлеб | P7: фрукты | U7: мясо тушеное | V7: макароны отвар | W7: чай с лимоном | X7: хлеб | AC7: с-т из свеклы отварной | AD7: котлеты из цыплят | AE7: картоф. пюре | AF7: чай с сахаром | AG7: хлеб | AM7: котлеты | AN7: рис отварной | AO7: чай с молоком | AP7: хлеб | AU7: с-т из кваш капусты | AV7: пельмени | AX7: кофейный н-к с молоком | AY7: хлеб | AZ7: фрукты
A8: мясо бескостное | C8: 66.6 | H8: =SUM(B8:G8) -> 66.6 | J8: мясо бескостное | Q8: =SUM(K8:P8) -> 0 | S8: мясо бескостное | U8: 83 | Z8: =SUM(T8:Y8) -> 83 | AB8: мясо бескостное | AI8: =SUM(AC8:AH8) -> 0 | AK8: мясо бескостное | AM8: 66.6 | AR8: =SUM(AL8:AQ8) -> 66.6 | AT8: мясо бескостное | BA8: =SUM(AU8:AZ8) -> 0 | BC8: мясо бескостное | BD8: =H8+Q8+Z8+AI8+AR8+BA8 -> 216.2
A9: пельмени | H9: 0 | J9: пельмени | Q9: =SUM(K9:P9) -> 0 | S9: пельмени | Z9: =SUM(T9:Y9) -> 0 | AB9: пельмени | AI9: 0 | AK9: пельмени | AR9: 0 | AT9: пельмени | AV9: 166.8 | BA9: 166.8 | BC9: пельмени | BD9: 166.8
A10: рыба свежая | H10: 0 | J10: рыба свежая | Q10: 0 | S10: рыба свежая | Z10: 0 | AB10: рыба свежая | AI10: 0 | AK10: рыба свежая | AR10: 0 | AT10: рыба свежая | BA10: 0 | BC10: рыба свежая | BD10: 0
A11: масло сливочное | D11: 5 | H11: 5 | J11: масло сливочное | Q11: 0 | S11: масло сливочное | V11: 5 | Z11: 5 | AB11: масло сливочное | AD11: 5 | AE11: 5 | AI11: 10 | AK11: масло сливочное | AN11: 6.7 | AR11: 6.7 | AT11: масло сливочное | AV11: 5 | BA11: 5 | BC11: масло сливочное | BD11: 31.7
A12: масло растительное | C12: 5.4 | H12: 5.4 | J12: масло растительное | L12: 5 | Q12: 5 | S12: масло растительное | U12: 5 | Z12: 5 | AB12: масло растительное | AC12: 3.6 | AD12: 5 | AI12: 8.6 | AK12: масло растительное | AM12: 5.4 | AR12: 5.4 | AT12: масло растительное | AU12: 3 | BA12: 3 | BC12: масло растительное | BD12: 32.4
A13: молоко свежее 0,9 | C13: 21.6 | E13: 51 | H13: 72.6 | J13: молоко свежее 0,9 | N13: 100 | Q13: 100 | S13: молоко свежее 0,9 | Z13: 0 | AB13: молоко свежее 0,9 | AD13: 21.6 | AE13: 23.7 | AI13: 45.3 | AK13: молоко свежее 0,9 | AM13: 21.6 | AO13: 51 | AR13: 72.6 | AT13: молоко свежее 0,9 | AX13: 100 | BA13: 100 | BC13: молоко свежее 0,9 | BD13: 390.5
A14: сметана 0,5 | H14: 0 | J14: сметана 0,5 | Q14: 0 | S14: сметана 0,5 | Z14: 0 | AB14: сметана 0,5 | AI14: 0 | AK14: сметана 0,5 | AR14: 0 | AT14: сметана 0,5 | BA14: 0 | BC14: сметана 0,5 | BD14: 0
A15: сыр | H15: 0 | J15: сыр | Q15: 0 | S15: сыр | Z15: 0 | AB15: сыр | AI15: 0 | AK15: сыр | AR15: 0 | AT15: сыр | BA15: 0 | BC15: сыр | BD15: 0
A16: яйцо шт | H16: 0 | J16: яйцо шт | Q16: 0 | S16: яйцо шт | Z16: 0 | AB16: яйцо шт | AI16: 0 | AK16: яйцо шт | AR16: 0 | AT16: яйцо шт | BA16: 0 | BC16: яйцо шт | BD16: 0
A17: мука пшеничная | H17: 0 | J17: мука пшеничная | L17: 1.2 | Q17: 1.2 | S17: мука пшеничная | U17: 2 | Z17: 2 | AB17: мука пшеничная | AI17: 0 | AK17: мука пшеничная | AR17: 0 | AT17: мука пшеничная | BA17: 0 | BC17: мука пшеничная | BD17: 3.2
A18: крупа пшеничная | H18: 0 | J18: крупа пшеничная | Q18: 0 | S18: крупа пшеничная | Z18: 0 | AB18: крупа пшеничная | AI18: 0 | AK18: крупа пшеничная | AR18: 0 | AT18: крупа пшеничная | BA18: 0 | BC18: крупа пшеничная | BD18: 0
A19: крупа перловая | H19: 0 | J19: крупа перловая | Q19: 0 | S19: крупа перловая | Z19: 0 | AB19: крупа перловая | AI19: 0 | AK19: крупа перловая | AR19: 0 | AT19: крупа перловая | BA19: 0 | BC19: крупа перловая | BD19: 0
A20: крупа овянная-геркулес | H20: 0 | J20: крупа овянная-геркулес | Q20: 0 | S20: крупа овянная-геркулес | Z20: 0 | AB20: крупа овянная-геркулес | AI20: 0 | AK20: крупа овянная-геркулес | AR20: 0 | AT20: крупа овянная-геркулес | BA20: 0 | BC20: крупа овянная-геркулес | BD20: 0
A21: крупа гречневая | D21: 37.5 | H21: 37.5 | J21: крупа гречневая | Q21: 0 | S21: крупа гречневая | Z21: 0 | AB21: крупа гречневая | AI21: 0 | AK21: крупа гречневая | AR21: 0 | AT21: крупа гречневая | BA21: 0 | BC21: крупа гречневая | BD21: 37.5
A22: крупа манная | H22: 0 | J22: крупа манная | Q22: 0 | S22: крупа манная | Z22: 0 | AB22: крупа манная | AI22: 0 | AK22: крупа манная | AR22: 0 | AT22: крупа манная | BA22: 0 | BC22: крупа манная | BD22: 0
A23: крупа рисовая | H23: 0 | J23: крупа рисовая | Q23: 0 | S23: крупа рисовая | Z23: 0 | AB23: крупа рисовая | AI23: 0 | AK23: крупа рисовая | AN23: 54 | AR23: 54 | AT23: крупа рисовая | BA23: 0 | BC23: крупа рисовая | BD23: 54
A24: пшено | H24: 0 | J24: пшено | Q24: 0 | S24: пшено | Z24: 0 | AB24: пшено | AI24: 0 | AK24: пшено | AR24: 0 | AT24: пшено | BA24: 0 | BC24: пшено | BD24: 0
A25: макаронные изделения | H25: 0 | J25: макаронные изделения | Q25: 0 | S25: макаронные изделения | V25: 52.5 | Z25: 52.5 | AB25: макаронные изделения | AI25: 0 | AK25: макаронные изделения | AR25: 0 | AT25: макаронные изделения | BA25: 0 | BC25: макаронные изделения | BD25: 52.5
A26: горох | H26: 0 | J26: горох | Q26: 0 | S26: горох | Z26: 0 | AB26: горох | AI26: 0 | AK26: горох | AR26: 0 | AT26: горох | BA26: 0 | BC26: горох | BD26: 0
A27: сахарный песок | E27: 15 | H27: 15 | J27: сахарный песок | N27: 20 | Q27: 20 | S27: сахарный песок | W27: 15 | Z27: 15 | AB27: сахарный песок | AF27: 15 | AI27: 15 | AK27: сахарный песок | AO27: 15 | AR27: 15 | AT27: сахарный песок | AU27: 3 | AX27: 20 | BA27: 23 | BC27: сахарный песок | BD27: 103
A28: сухофрукты | H28: 0 | J28: сухофрукты | Q28: 0 | S28: сухофрукты | Z28: 0 | AB28: сухофрукты | AI28: 0 | AK28: сухофрукты | AR28: 0 | AT28: сухофрукты | BA28: 0 | BC28: сухофрукты | BD28: 0
A29: томат паста 0,5 | H29: 0 | J29: томат паста 0,5 | L29: 7.2 | Q29: 7.2 | S29: томат паста 0,5 | U29: 7 | Z29: 7 | AB29: томат паста 0,5 | AI29: 0 | AK29: томат паста 0,5 | AR29: 0 | AT29: томат паста 0,5 | BA29: 0 | BC29: томат паста 0,5 | BD29: 14.2
A30: картофель | H30: 0 | J30: картофель | L30: 128.4 | Q30: 128.4 | S30: картофель | Z30: 0 | AB30: картофель | AE30: 197 | AI30: 197 | AK30: картофель | AR30: 0 | AT30: картофель | BA30: 0 | BC30: картофель | BD30: 325.4
A31: капуста свежая | H31: 0 | J31: капуста свежая | Q31: 0 | S31: капуста свежая | Z31: 0 | AB31: капуста свежая | AI31: 0 | AK31: капуста свежая | AR31: 0 | AT31: капуста свежая | BA31: 0 | BC31: капуста свежая | BD31: 0
A32: лук | H32: 0 | J32: лук | L32: 14.4 | Q32: 14.4 | S32: лук | U32: 5 | Z32: 5 | AB32: лук | AI32: 0 | AK32: лук | AR32: 0 | AT32: лук | AU32: 7.14 | BA32: 7.14 | BC32: лук | BD32: 26.54
A33: морковь | H33: 0 | J33: морковь | L33: 25.2 | Q33: 25.2 | S33: морковь | U33: 5 | Z33: 5 | AB33: морковь | AI33: 0 | AK33: морковь | AR33: 0 | AT33: морковь | BA33: 0 | BC33: морковь | BD33: 30.2
A34: огурцы соленые 3 л. | H34: 0 | J34: огурцы соленые 3 л. | Q34: 0 | S34: огурцы соленые 3 л. | Z34: 0 | AB34: огурцы соленые 3 л. | AI34: 0 | AK34: огурцы соленые 3 л. | AR34: 0 | AT34: капуста квашеная | AU34: 69.42 | BA34: 69.42 | BC34: огурцы соленые 3 л. | BD34: 69.42
A35: горошек зел. консер. | H35: 0 | J35: горошек зел. консер. | Q35: 0 | S35: горошек зел. консер. | Z35: 0 | AB35: горошек зел. консер. | AI35: 0 | AK35: горошек зел. консер. | AR35: 0 | AT35: горошек зел. консер. | BA35: 0 | BC35: горошек зел. консер. | BD35: 0
A36: оргурцы свежие | H36: 0 | J36: оргурцы свежие | Q36: 0 | S36: оргурцы свежие | Z36: 0 | AB36: оргурцы свежие | AI36: 0 | AK36: оргурцы свежие | AR36: 0 | AT36: оргурцы свежие | BA36: 0 | BC36: оргурцы свежие | BD36: 0
A37: помидоры свежие | H37: 0 | J37: помидоры свежие | Q37: 0 | S37: помидоры свежие | Z37: 0 | AB37: помидоры свежие | AI37: 0 | AK37: помидоры свежие | AR37: 0 | AT37: помидоры свежие | BA37: 0 | BC37: помидоры свежие | BD37: 0
A38: свекла | H38: 0 | J38: свекла | Q38: 0 | S38: свекла | Z38: 0 | AB38: свекла | AC38: 73 | AI38: 73 | AK38: свекла | AR38: 0 | AT38: свекла | BA38: 0 | BC38: свекла | BD38: 73
A39: соль | C39: 1 | D39: 1.5 | H39: 2.5 | J39: соль | L39: 1 | Q39: 1 | S39: соль | U39: 1 | V39: 2.6 | Z39: 3.6 | AB39: соль | AD39: 1 | AE39: 1 | AI39: 2 | AK39: соль | AM39: 1 | AN39: 3 | AR39: 4 | AT39: соль | AV39: 3.6 | BA39: 3.6 | BC39: соль | BD39: 16.7
A40: хлеб пшен | C40: 16.2 | F40: 30 | H40: 46.2 | J40: хлеб пшен | O40: 30 | Q40: 30 | S40: хлеб пшен | X40: 30 | Z40: 30 | AB40: хлеб пшен | AD40: 14.4 | AG40: 30 | AI40: 44.4 | AK40: хлеб пшен | AM40: 16.2 | AP40: 30 | AR40: 46.2 | AT40: хлеб пшен | AY40: 30 | BA40: 30 | BC40: хлеб пшен | BD40: 226.8
A41: хлеб ржан | F41: 20 | H41: 20 | J41: хлеб ржан | O41: 20 | Q41: 20 | S41: хлеб ржан | X41: 20 | Z41: 20 | AB41: хлеб ржан | AG41: 20 | AI41: 20 | AK41: хлеб ржан | AP41: 20 | AR41: 20 | AT41: хлеб ржан | AY41: 20 | BA41: 20 | BC41: хлеб ржан | BD41: 120
A42: какао - порошок | H42: 0 | J42: какао - порошок | N42: 4 | Q42: 4 | S42: какао - порошок | Z42: 0 | AB42: какао - порошок | AI42: 0 | AK42: какао - порошок | AR42: 0 | AT42: какао - порошок | BA42: 0 | BC42: какао - порошок | BD42: 4
A43: кофейный напиток | H43: 0 | J43: кофейный напиток | Q43: 0 | S43: кофейный напиток | Z43: 0 | AB43: кофейный напиток | AI43: 0 | AK43: кофейный напиток | AR43: 0 | AT43: кофейный напиток | AX43: 5 | BA43: 5 | BC43: кофейный напиток | BD43: 5
A44: чай | E44: 1 | H44: 1 | J44: чай | Q44: 0 | S44: чай | W44: 1 | Z44: 1 | AB44: чай | AF44: 1 | AI44: 1 | AK44: чай | AO44: 1 | AR44: 1 | AT44: чай | BA44: 0 | BC44: чай | BD44: 4
A45: сок по 0,2 в шт | H45: 0 | J45: сок по 0,2 в шт | Q45: 0 | S45: сок по 0,2 в шт | Z45: 0 | AB45: сок по 0,2 в шт | AI45: 0 | AK45: сок по 0,2 в шт | AR45: 0 | AT45: сок по 0,2 в шт | BA45: 0 | BC45: сок по 0,2 в шт | BD45: 0
A46: апельс | H46: 0 | J46: апельс | Q46: 0 | S46: апельс | Z46: 0 | AB46: апельс | AI46: 0 | AK46: апельс | AR46: 0 | AT46: апельс | AZ46: 100 | BA46: 100 | BC46: апельс | BD46: 100
A47: банан | H47: 0 | J47: банан | Q47: 0 | S47: банан | Z47: 0 | AB47: банан | AI47: 0 | AK47: банан | AR47: 0 | AT47: банан | BA47: 0 | BC47: банан | BD47: 0
A48: яблоки | H48: 0 | J48: яблоки | P48: 100 | Q48: 100 | S48: яблоки | Z48: 0 | AB48: яблоки | AI48: 0 | AK48: яблоки | AR48: 0 | AT48: яблоки | BA48: 0 | BC48: яблоки | BD48: 100
A49: лимон | H49: 0 | J49: лимон | Q49: 0 | S49: лимон | W49: 8 | Z49: 8 | AB49: лимон | AI49: 0 | AK49: лимон | AR49: 0 | AT49: лимон | BA49: 0 | BC49: лимон | BD49: 8
A50: груши | H50: 0 | J50: груши | Q50: 0 | S50: груши | Z50: 0 | AB50: груши | AI50: 0 | AK50: груши | AR50: 0 | AT50: груши | BA50: 0 | BC50: груши | BD50: 0
A51: мандарины | H51: 0 | J51: мандарины | Q51: 0 | S51: мандарины | Z51: 0 | AB51: мандарины | AI51: 0 | AK51: мандарины | AR51: 0 | AT51: мандарины | BA51: 0 | BC51: мандарины | BD51: 0
A52: куры охлажден. | H52: 0 | J52: куры охлажден. | L52: 104 | Q52: 104 | S52: куры охлажден. | Z52: 0 | AB52: куры охлажден. | AD52: 153 | AI52: 153 | AK52: куры охлажден. | AR52: 0 | AT52: куры охлажден. | BA52: 0 | BC52: куры охлажден. | BD52: 257
A53: творог | H53: 0 | J53: творог | Q53: 0 | S53: творог | Z53: 0 | AB53: творог | AI53: 0 | AK53: творог | AR53: 0 | AT53: творог | BA53: 0 | BC53: творог | BD53: 0
A54: повидло | H54: 0 | J54: повидло | Q54: 0 | S54: повидло | Z54: 0 | AB54: повидло | AI54: 0 | AK54: повидло | AR54: 0 | AT54: повидло | BA54: 0 | BC54: повидло | BD54: 0
A55: сухари | C55: 9 | H55: 9 | J55: сухари | Q55: 0 | S55: сухари | Z55: 0 | AB55: сухари | AD55: 9 | AI55: 9 | AK55: сухари | AM55: 9 | AR55: 9 | AT55: сухари | BA55: 0 | BC55: сухари | BD55: 27
A57: 2 НЕДЕЛЯ
A58: Накопительная ведомость | E58: Утверждаю: | J58: Накопительная ведомость | N58: Утверждаю: | S58: Накопительная ведомость | W58: Утверждаю: | AB58: Накопительная ведомость | AF58: Утверждаю: | AK58: Накопительная ведомость | AO58: Утверждаю: | AT58: Накопительная ведомость | AX58: Утверждаю:
A59: на выдачу продуктов питания | D59: Руководитель учреждения ______________ | J59: на выдачу продуктов питания | M59: Руководитель учреждения ______________ | S59: на выдачу продуктов питания | V59: Руководитель учреждения ______________ | AB59: на выдачу продуктов питания | AE59: Руководитель учреждения ______________ | AK59: на выдачу продуктов питания | AN59: Руководитель учреждения ______________ | AT59: на выдачу продуктов питания | AW59: Руководитель учреждения ______________
D60: на 1 день, на 1 человека | M60: на 2 день, на 1 человека | V60: на 3 день, на 1 человека | AE60: на 4 день, на 1 человека | AN60: на 5 день, на 1 человека | AW60: на 6 день, на 1 человека
V61: -35%
A62: МЕНЮ | B62: количество продуктов питания подлежащих закладке | H62: итого | J62: МЕНЮ | K62: количество продуктов питания подлежащих закладке | Q62: итого | S62: МЕНЮ | T62: количество продуктов питания подлежащих закладке | Z62: итого | AB62: МЕНЮ | AC62: количество продуктов питания подлежащих закладке | AI62: итого | AK62: МЕНЮ | AL62: количество продуктов питания подлежащих закладке | AR62: итого | AT62: МЕНЮ | AU62: количество продуктов питания подлежащих закладке | BA62: итого | BC62: итого за 2 неделю
B63: винегрет овощной с луком р | C63: фрикадельки в соусе | D63: каша гречнев | E63: чай с сахаром | F63: хлеб | G63: фрукты | K63: с-т из свеклы отварной | L63: плов из птицы | N63: чай с сах.лим | O63: хлеб | U63: биточки рыбные | V63: картоф. пюре | W63: кофейный н-к с молоком | X63: хлеб | AD63: котлеты | AE63: макароны отвар | AF63: чай с лимоном | AG63: хлеб | AM63: с-т из кваш капусты | AN63: птица тушеная в соусе | AO63: рис отварной | AP63: чай с сахаром | AQ63: хлеб | AU63: винегрет овощной с луком р | AV63: пельмени | AW63: какао с молоком | AY63: хлеб | AZ63: фрукты
A64: мясо бескостное | C64: 52 | H64: =SUM(B64:G64) -> 52 | J64: мясо бескостное | Q64: =SUM(K64:P64) -> 0 | S64: мясо бескостное | Z64: =SUM(T64:Y64) -> 0 | AB64: мясо бескостное | AD64: 66.6 | AI64: =SUM(AC64:AH64) -> 66.6 | AK64: мясо бескостное | AR64: =SUM(AL64:AQ64) -> 0 | AT64: мясо бескостное | BA64: =SUM(AU64:AZ64) -> 0 | BC64: мясо бескостное | BD64: =H64+Q64+Z64+AI64+AR64+BA64 -> 118.6
A65: пельмени | H65: 0 | J65: пельмени | Q65: =SUM(K65:P65) -> 0 | S65: пельмени | Z65: 0 | AB65: пельмени | AI65: 0 | AK65: пельмени | AR65: 0 | AT65: пельмени | AV65: 166.8 | BA65: 166.8 | BC65: пельмени | BD65: 166.8
A66: рыба свежая | H66: 0 | J66: рыба свежая | Q66: 0 | S66: рыба свежая | U66: 126 | Z66: 126 | AB66: рыба свежая | AI66: 0 | AK66: рыба свежая | AR66: 0 | AT66: рыба свежая | BA66: 0 | BC66: рыба свежая | BD66: 126
A67: масло сливочное | D67: 5 | H67: 5 | J67: масло сливочное | Q67: 0 | S67: масло сливочное | V67: 5 | Z67: 5 | AB67: масло сливочное | AE67: 5 | AI67: 5 | AK67: масло сливочное | AO67: 6.7 | AR67: 6.7 | AT67: масло сливочное | AV67: 5 | BA67: 5 | BC67: масло сливочное | BD67: 26.7
A68: масло растительное | B68: 3.6 | C68: 5 | H68: 8.6 | J68: масло растительное | K68: 3.6 | L68: 10.5 | Q68: 14.1 | S68: масло растительное | U68: 9 | Z68: 9 | AB68: масло растительное | AD68: 5.4 | AI68: 5.4 | AK68: масло растительное | AM68: 3 | AN68: 2 | AR68: 5 | AT68: масло растительное | AU68: 3.6 | BA68: 3.6 | BC68: масло растительное | BD68: 45.7
A69: молоко свежее 0,9 | C69: 11 | H69: 11 | J69: молоко свежее 0,9 | Q69: 0 | S69: молоко свежее 0,9 | U69: 23.4 | V69: 25 | W69: 100 | Z69: 148.4 | AB69: молоко свежее 0,9 | AD69: 21.6 | AI69: 21.6 | AK69: молоко свежее 0,9 | AR69: 0 | AT69: молоко свежее 0,9 | AW69: 100 | BA69: 100 | BC69: молоко свежее 0,9 | BD69: 281
A70: сметана 0,5 | C70: 12.5 | H70: 12.5 | J70: сметана 0,5 | Q70: 0 | S70: сметана 0,5 | Z70: 0 | AB70: сметана 0,5 | AI70: 0 | AK70: сметана 0,5 | AN70: 12.5 | AR70: 12.5 | AT70: сметана 0,5 | BA70: 0 | BC70: сметана 0,5 | BD70: 25
A71: сыр | H71: 0 | J71: сыр | Q71: 0 | S71: сыр | Z71: 0 | AB71: сыр | AI71: 0 | AK71: сыр | AR71: 0 | AT71: сыр | BA71: 0 | BC71: сыр | BD71: 0
A72: яйцо шт | H72: 0 | J72: яйцо шт | Q72: 0 | S72: яйцо шт | Z72: 0 | AB72: яйцо шт | AI72: 0 | AK72: яйцо шт | AR72: 0 | AT72: яйцо шт | BA72: 0 | BC72: яйцо шт | BD72: 0
A73: мука пшеничная | C73: 9 | H73: 9 | J73: мука пшеничная | Q73: 0 | S73: мука пшеничная | Z73: 0 | AB73: мука пшеничная | AI73: 0 | AK73: мука пшеничная | AN73: 3.75 | AR73: 3.75 | AT73: мука пшеничная | BA73: 0 | BC73: мука пшеничная | BD73: 12.75
A74: крупа пшеничная | H74: 0 | J74: крупа пшеничная | Q74: 0 | S74: крупа пшеничная | Z74: 0 | AB74: крупа пшеничная | AI74: 0 | AK74: крупа пшеничная | AR74: 0 | AT74: крупа пшеничная | BA74: 0 | BC74: крупа пшеничная | BD74: 0
A75: крупа перловая | H75: 0 | J75: крупа перловая | Q75: 0 | S75: крупа перловая | Z75: 0 | AB75: крупа перловая | AI75: 0 | AK75: крупа перловая | AR75: 0 | AT75: крупа перловая | BA75: 0 | BC75: крупа перловая | BD75: 0
A76: крупа овянная-геркулес | H76: 0 | J76: крупа овянная-геркулес | Q76: 0 | S76: крупа овянная-геркулес | Z76: 0 | AB76: крупа овянная-геркулес | AI76: 0 | AK76: крупа овянная-геркулес | AR76: 0 | AT76: крупа овянная-геркулес | BA76: 0 | BC76: крупа овянная-геркулес | BD76: 0
A77: крупа гречневая | D77: 70 | H77: 70 | J77: крупа гречневая | Q77: 0 | S77: крупа гречневая | Z77: 0 | AB77: крупа гречневая | AI77: 0 | AK77: крупа гречневая | AR77: 0 | AT77: крупа гречневая | BA77: 0 | BC77: крупа гречневая | BD77: 70
A78: крупа манная | H78: 0 | J78: крупа манная | Q78: 0 | S78: крупа манная | Z78: 0 | AB78: крупа манная | AI78: 0 | AK78: крупа манная | AR78: 0 | AT78: крупа манная | BA78: 0 | BC78: крупа манная | BD78: 0
A79: крупа рисовая | H79: 0 | J79: крупа рисовая | L79: 52.5 | Q79: 52.5 | S79: крупа рисовая | Z79: 0 | AB79: крупа рисовая | AI79: 0 | AK79: крупа рисовая | AO79: 54 | AR79: 54 | AT79: крупа рисовая | BA79: 0 | BC79: крупа рисовая | BD79: 106.5
A80: пшено | H80: 0 | J80: пшено | Q80: 0 | S80: пшено | Z80: 0 | AB80: пшено | AI80: 0 | AK80: пшено | AR80: 0 | AT80: пшено | BA80: 0 | BC80: пшено | BD80: 0
A81: макаронные изделения | H81: 0 | J81: макаронные изделения | Q81: 0 | S81: макаронные изделения | Z81: 0 | AB81: макаронные изделения | AE81: 52.5 | AI81: 52.5 | AK81: макаронные изделения | AR81: 0 | AT81: макаронные изделения | BA81: 0 | BC81: макаронные изделения | BD81: 52.5
A82: горох | H82: 0 | J82: горох | Q82: 0 | S82: горох | Z82: 0 | AB82: горох | AI82: 0 | AK82: горох | AR82: 0 | AT82: горох | BA82: 0 | BC82: горох | BD82: 0
A83: сахарный песок | E83: 15 | H83: 15 | J83: сахарный песок | N83: 15 | Q83: 15 | S83: сахарный песок | W83: 20 | Z83: 20 | AB83: сахарный песок | AF83: 15 | AI83: 15 | AK83: сахарный песок | AM83: 3 | AP83: 15 | AR83: 18 | AT83: сахарный песок | AW83: 20 | BA83: 20 | BC83: сахарный песок | BD83: 103
A84: сухофрукты | H84: 0 | J84: сухофрукты | Q84: 0 | S84: сухофрукты | Z84: 0 | AB84: сухофрукты | AI84: 0 | AK84: сухофрукты | AR84: 0 | AT84: сухофрукты | BA84: 0 | BC84: сухофрукты | BD84: 0
A85: томат паста 0,5 | C85: 5 | H85: 5 | J85: томат паста 0,5 | L85: 7.5 | Q85: 7.5 | S85: томат паста 0,5 | Z85: 0 | AB85: томат паста 0,5 | AI85: 0 | AK85: томат паста 0,5 | AN85: 5 | AR85: 5 | AT85: томат паста 0,5 | BA85: 0 | BC85: томат паста 0,5 | BD85: 17.5
A86: картофель | B86: 20.64 | H86: 20.64 | J86: картофель | Q86: 0 | S86: картофель | V86: 210 | Z86: 210 | AB86: картофель | AI86: 0 | AK86: картофель | AR86: 0 | AT86: картофель | AU86: 20.64 | BA86: 20.64 | BC86: картофель | BD86: 251.28
A87: капуста свежая | H87: 0 | J87: капуста свежая | Q87: 0 | S87: капуста свежая | Z87: 0 | AB87: капуста свежая | AI87: 0 | AK87: капуста свежая | AR87: 0 | AT87: капуста свежая | BA87: 0 | BC87: капуста свежая | BD87: 0
A88: лук | B88: 11 | C88: 5 | H88: 16 | J88: лук | L88: 12 | Q88: 12 | S88: лук | Z88: 0 | AB88: лук | AI88: 0 | AK88: лук | AM88: 7.14 | AR88: 7.14 | AT88: лук | AU88: 11 | BA88: 11 | BC88: лук | BD88: 46.14
A89: морковь | B89: 11.3 | H89: 11.3 | J89: морковь | L89: 15 | Q89: 15 | S89: морковь | Z89: 0 | AB89: морковь | AI89: 0 | AK89: морковь | AR89: 0 | AT89: морковь | AU89: 11.3 | BA89: 11.3 | BC89: морковь | BD89: 37.6
A90: огурцы соленые 3 л. | B90: 15 | H90: 15 | J90: огурцы соленые 3 л. | Q90: 0 | S90: квашеная капуста | Z90: 0 | AB90: огурцы соленые 3 л. | AI90: 0 | AK90: капуста квашеная | AM90: 69.42 | AR90: 69.42 | AT90: огурцы соленые 3 л. | AU90: 15 | BA90: 15 | BC90: огурцы соленые 3 л. | BD90: 99.42
A91: горошек зел. консер. | H91: 0 | J91: горошек зел. консер. | Q91: 0 | S91: горошек зел. консер. | Z91: 0 | AB91: горошек зел. консер. | AI91: 0 | AK91: горошек зел. консер. | AR91: 0 | AT91: горошек зел. консер. | BA91: 0 | BC91: горошек зел. консер. | BD91: 0
A92: оргурцы свежие | H92: 0 | J92: оргурцы свежие | Q92: 0 | S92: оргурцы свежие | Z92: 0 | AB92: оргурцы свежие | AI92: 0 | AK92: оргурцы свежие | AR92: 0 | AT92: оргурцы свежие | BA92: 0 | BC92: оргурцы свежие | BD92: 0
A93: помидоры свежие | H93: 0 | J93: помидоры свежие | Q93: 0 | S93: помидоры свежие | Z93: 0 | AB93: помидоры свежие | AI93: 0 | AK93: помидоры свежие | AR93: 0 | AT93: помидоры свежие | BA93: 0 | BC93: помидоры свежие | BD93: 0
A94: свекла | B94: 15.3 | H94: 15.3 | J94: свекла | K94: 73 | Q94: 73 | S94: свекла | Z94: 0 | AB94: свекла | AI94: 0 | AK94: свекла | AR94: 0 | AT94: свекла | AU94: 15.3 | BA94: 15.3 | BC94: свекла | BD94: 103.6
A95: соль | B95: 1 | C95: 1 | D95: 2 | H95: 4 | J95: соль | L95: 1 | Q95: 1 | S95: соль | U95: 1 | V95: 1 | Z95: 2 | AB95: соль | AD95: 1 | AE95: 2.6 | AI95: 3.6 | AK95: соль | AO95: 3 | AR95: 3 | AT95: соль | AU95: 1 | AV95: 3.6 | BA95: 4.6 | BC95: соль | BD95: 18.2
A96: хлеб пшен | C96: 8 | F96: 30 | H96: 38 | J96: хлеб пшен | O96: 30 | Q96: 30 | S96: хлеб пшен | U96: 16.2 | X96: 30 | Z96: 46.2 | AB96: хлеб пшен | AD96: 16.2 | AG96: 30 | AI96: 46.2 | AK96: хлеб пшен | AQ96: 30 | AR96: 30 | AT96: хлеб пшен | AY96: 30 | BA96: 30 | BC96: хлеб пшен | BD96: 220.4
A97: хлеб ржан | F97: 20 | H97: 20 | J97: хлеб ржан | O97: 20 | Q97: 20 | S97: хлеб ржан | X97: 20 | Z97: 20 | AB97: хлеб ржан | AG97: 20 | AI97: 20 | AK97: хлеб ржан | AQ97: 20 | AR97: 20 | AT97: хлеб ржан | AY97: 20 | BA97: 20 | BC97: хлеб ржан | BD97: 120
A98: какао - порошок | H98: 0 | J98: какао - порошок | Q98: 0 | S98: какао - порошок | Z98: 0 | AB98: какао - порошок | AI98: 0 | AK98: какао - порошок | AR98: 0 | AT98: какао - порошок | AW98: 4 | BA98: 4 | BC98: какао - порошок | BD98: 4
A99: кофейный напиток | H99: 0 | J99: кофейный напиток | Q99: 0 | S99: кофейный напиток | W99: 5 | Z99: 5 | AB99: кофейный напиток | AI99: 0 | AK99: кофейный напиток | AR99: 0 | AT99: кофейный напиток | BA99: 0 | BC99: кофейный напиток | BD99: 5
A100: чай | E100: 1 | H100: 1 | J100: чай | N100: 1 | Q100: 1 | S100: чай | Z100: 0 | AB100: чай | AF100: 1 | AI100: 1 | AK100: чай | AP100: 1 | AR100: 1 | AT100: чай | BA100: 0 | BC100: чай | BD100: 4
A101: сок по 0,2 в шт | H101: 0 | J101: сок по 0,2 в шт | Q101: 0 | S101: сок по 0,2 в шт | Z101: 0 | AB101: сок по 0,2 в шт | AI101: 0 | AK101: сок по 0,2 в шт | AR101: 0 | AT101: сок по 0,2 в шт | BA101: 0 | BC101: сок по 0,2 в шт | BD101: 0
A102: апельс | H102: 0 | J102: апельс | Q102: 0 | S102: апельс | Z102: 0 | AB102: апельс | AI102: 0 | AK102: апельс | AR102: 0 | AT102: апельс | BA102: 0 | BC102: апельс | BD102: 0
A103: банан | H103: 0 | J103: банан | Q103: 0 | S103: банан | Z103: 0 | AB103: банан | AI103: 0 | AK103: банан | AR103: 0 | AT103: банан | BA103: 0 | BC103: банан | BD103: 0
A104: яблоки | G104: 100 | H104: 100 | J104: яблоки | Q104: 0 | S104: яблоки | Z104: 0 | AB104: яблоки | AI104: 0 | AK104: яблоки | AR104: 0 | AT104: яблоки | AZ104: 100 | BA104: 100 | BC104: яблоки | BD104: 200
A105: лимон | H105: 0 | J105: лимон | N105: 8 | Q105: 8 | S105: лимон | Z105: 0 | AB105: лимон | AF105: 8 | AI105: 8 | AK105: лимон | AR105: 0 | AT105: лимон | BA105: 0 | BC105: лимон | BD105: 16
A106: груши | H106: 0 | J106: груши | Q106: 0 | S106: груши | Z106: 0 | AB106: груши | AI106: 0 | AK106: груши | AR106: 0 | AT106: груши | BA106: 0 | BC106: груши | BD106: 0
A107: мандарины | H107: 0 | J107: мандарины | Q107: 0 | S107: мандарины | Z107: 0 | AB107: мандарины | AI107: 0 | AK107: мандарины | AR107: 0 | AT107: мандарины | BA107: 0 | BC107: мандарины | BD107: 0
A108: куры охлажден. | H108: 0 | J108: куры охлажден. | L108: 96 | Q108: 96 | S108: куры охлажден. | Z108: 0 | AB108: куры охлажден. | AI108: 0 | AK108: куры охлажден. | AN108: 99 | AR108: 99 | AT108: куры охлажден. | BA108: 0 | BC108: куры охлажден. | BD108: 195
A109: творог | H109: 0 | J109: творог | Q109: 0 | S109: творог | Z109: 0 | AB109: творог | AI109: 0 | AK109: творог | AR109: 0 | AT109: творог | BA109: 0 | BC109: творог | BD109: 0
A110: повидло | H110: 0 | J110: повидло | Q110: 0 | S110: повидло | Z110: 0 | AB110: повидло | AI110: 0 | AK110: повидло | AR110: 0 | AT110: повидло | BA110: 0 | BC110: повидло | BD110: 0
A111: сухари | H111: 0 | J111: сухари | Q111: 0 | S111: сухари | U111: 9 | Z111: 9 | AB111: сухари | AD111: 9 | AI111: 9 | AK111: сухари | AR111: 0 | AT111: сухари | BA111: 0 | BC111: сухари | BD111: 18

Sheet Накопительная НЗ
A2: Накопительная ведомость | I2: Утверждаю:
A3: на выдачу продуктов питания | H3: Руководитель учреждения ______________________________
A4: начальное звено | H4: за 12 дней на 1ребенка
A6: МЕНЮ | B6: цена | C6: количество продуктов питания подлежащих закладке | O6: итого за 12 дней | P6: стоим. на 1 чел
C7: день 1 | D7: день 2 | E7: день 3 | F7: день 4 | G7: день 5 | H7: день 6 | I7: день 7 | J7: день 8 | K7: день 9 | L7: день 10 | M7: день 11 | N7: день 12 | Q7: среднее
A8: мясо бескостное | B8: 416.67 | C8: 66.6 | E8: 83 | G8: 66.6 | I8: 52 | L8: 66.6 | O8: =SUM(C8:N8) -> 334.8 | P8: =O8*B8/1000 -> 139.50 | Q8: =O8/12 -> 27.90
A9: пельмени | B9: 344.81 | H9: 166.8 | N9: 166.8 | O9: =SUM(C9:N9) -> 333.6 | P9: =O9*B9/1000 -> 115.03 | Q9: =O9/12 -> 27.80
A10: рыба свежая | B10: 321 | K10: 126 | O10: 126 | P10: 40.45 | Q10: 10.50
A11: масло сливочное | B11: 837.44 | C11: 5 | E11: 5 | F11: 10 | G11: 6.7 | H11: 5 | I11: 5 | K11: 5 | L11: 5 | M11: 6.7 | N11: 5 | O11: 58.4 | P11: 48.91 | Q11: 4.87
A12: масло растительное 1 л. | B12: 118.62 | C12: 5.4 | D12: 5 | E12: 5 | F12: 8.6 | G12: 5.4 | H12: 3 | I12: 8.6 | J12: 14.1 | K12: 9 | L12: 5.4 | M12: 5 | N12: 3.6 | O12: 78.1 | P12: 9.26 | Q12: 6.51
A13: молоко свежее 1 л. | B13: 60.18 | C13: 72.6 | D13: 100 | F13: 45.3 | G13: 72.6 | H13: 100 | I13: 11 | K13: 148.4 | L13: 21.6 | N13: 100 | O13: 671.5 | P13: 40.41 | Q13: 55.96
A14: сметана 1 кг. | B14: 197.36 | I14: 12.5 | M14: 12.5 | O14: 25 | P14: 4.93 | Q14: 2.08
A15: сыр | B15: 523.4 | O15: 0 | P15: 0.00 | Q15: 0.00
A16: яйцо в шт | B16: 9.57 | O16: 0 | P16: =O16*B16 -> 0.00 | Q16: 0.00
A17: мука пшеничная | B17: 35.85 | D17: 1.2 | E17: 2 | I17: 9 | M17: 3.75 | O17: 15.95 | P17: 0.57 | Q17: 1.33
A18: крупа пшеничная | B18: 34.68 | O18: 0 | P18: 0.00 | Q18: 0.00
A19: крупа перловая | B19: 33.55 | O19: 0 | P19: 0.00 | Q19: 0.00
A20: крупа овянная-геркулес | B20: 38 | O20: 0 | P20: 0.00 | Q20: 0.00
A21: крупа гречневая | B21: 98.08 | C21: 37.5 | I21: 70 | O21: 107.5 | P21: 10.54 | Q21: 8.96
A22: крупа манная | B22: 43.29 | O22: 0 | P22: 0.00 | Q22: 0.00
A23: крупа рисовая | B23: 62.3 | G23: 54 | J23: 52.5 | M23: 54 | O23: 160.5 | P23: 10.00 | Q23: 13.38
A24: пшено | B24: 44.6 | O24: 0 | P24: 0.00 | Q24: 0.00
A25: макаронные изделения | B25: 44.87 | E25: 52.5 | L25: 52.5 | O25: 105 | P25: 4.71 | Q25: 8.75
A26: горох | B26: 41.36 | O26: 0 | P26: 0.00 | Q26: 0.00
A27: крупа ячневая | B27: 29.05 | O27: 0 | P27: 0.00 | Q27: 0.00
A28: сахарный песок | B28: 57.33 | C28: 15 | D28: 20 | E28: 15 | F28: 15 | G28: 15 | H28: 23 | I28: 15 | J28: 15 | K28: 20 | L28: 15 | M28: 18 | N28: 20 | O28: 206 | P28: 11.81 | Q28: 17.17
A29: сухофрукты | B29: 109.72 | O29: 0 | P29: 0.00 | Q29: 0.00
A30: томат паста 0,5 | B30: 66.65 | D30: 7.2 | E30: 7 | I30: 5 | J30: 7.5 | M30: 5 | O30: 31.7 | P30: =O30*B30/500 -> 4.23 | Q30: 2.64
A31: картофель | B31: 38.29 | D31: 128.4 | F31: 197 | I31: 20.64 | K31: 210 | N31: 20.64 | O31: 576.68 | P31: 22.08 | Q31: 48.06
A32: капуста свежая | B32: 58.33 | O32: 0 | P32: 0.00 | Q32: 0.00
A33: лук | B33: 27.88 | D33: 14.4 | E33: 5 | H33: 7.14 | I33: 16 | J33: 12 | M33: 7.14 | N33: 11 | O33: 72.68 | P33: 2.03 | Q33: 6.06
A34: морковь | B34: 36.47 | D34: 25.2 | E34: 5 | I34: 11.3 | J34: 15 | N34: 11.3 | O34: 67.8 | P34: 2.47 | Q34: 5.65
A35: огурцы соленые 3 л. | B35: 122.52 | I35: 15 | N35: 15 | O35: 30 | P35: =O35*B35/3000 -> 1.23 | Q35: 2.50
A36: капуста квашеная | B36: 125.66 | H36: 69.42 | M36: 69.42 | O36: 138.84 | P36: 17.45 | Q36: 11.57
A37: зеленый горошек 0,425 | B37: 56.85 | O37: 0 | P37: =O37*B37/425 -> 0.00 | Q37: 0.00
A38: огурцы свеж | O38: 0 | P38: 0.00 | Q38: 0.00
A39: помидор свеж | O39: 0 | P39: 0.00 | Q39: 0.00
A40: свекла | B40: 37.64 | F40: 73 | I40: 15.3 | J40: 73 | N40: 15.3 | O40: 176.6 | P40: 6.65 | Q40: 14.72
A41: соль | B41: 11.9 | C41: 2.5 | D41: 1 | E41: 3.6 | F41: 2 | G41: 4 | H41: 3.6 | I41: 4 | J41: 2 | K41: 2 | L41: 3.6 | M41: 3 | N41: 4.6 | O41: 35.9 | P41: 0.43 | Q41: 2.99
A42: хлеб бух. 500 | B42: 30.8 | C42: 46.2 | D42: 30 | E42: 30 | F42: 44.4 | G42: 46.2 | H42: 30 | I42: 38 | J42: 30 | K42: 46.2 | L42: 46.2 | M42: 30 | N42: 30 | O42: 447.2 | P42: =O42*B42/500 -> 27.55 | Q42: 37.27
A43: хлеб ржан 500 | B43: 28.7 | C43: 20 | D43: 20 | E43: 20 | F43: 20 | G43: 20 | H43: 20 | I43: 20 | J43: 20 | K43: 20 | L43: 20 | M43: 20 | N43: 20 | O43: 240 | P43: =O43*B43/500 -> 13.78 | Q43: 20.00
A44: какао 250 г. | B44: 63.3 | D44: 4 | N44: 4 | O44: 8 | P44: =O44*B44/250 -> 2.03 | Q44: 0.67
A45: кофейный напиток 250 г | B45: 122.56 | H45: 5 | K45: 5 | O45: 10 | P45: =O45*B45/250 -> 4.90 | Q45: 0.83
A46: чай 100 г. | B46: 67.1 | C46: 1 | E46: 1 | F46: 1 | G46: 1 | I46: 1 | J46: 1 | L46: 1 | M46: 1 | O46: 8 | P46: =O46*B46/100 -> 5.37 | Q46: 0.67
A47: сок по 0,2 шт | B47: 16.9 | O47: 0 | P47: =O47*B47 -> 0.00 | Q47: 0.00
A48: дрожжи | B48: 381.83 | O48: 0 | P48: 0.00 | Q48: 0.00
A49: печенье | O49: 0 | P49: 0.00 | Q49: 0.00
A50: вафли | O50: 0 | P50: 0.00 | Q50: 0.00
A51: апельс | B51: 115.21 | H51: 100 | O51: 100 | P51: 11.52 | Q51: 8.33
A52: банан | B52: 83.34 | O52: 0 | P52: 0.00 | Q52: 0.00
A53: яблоки | B53: 81.92 | D53: 100 | I53: 100 | N53: 100 | O53: 300 | P53: 24.58 | Q53: 25.00
A54: лимон | B54: 147.05 | E54: 8 | J54: 8 | L54: 8 | O54: 24 | P54: 3.53 | Q54: 2.00
A55: груши | B55: 135.92 | O55: 0 | P55: 0.00 | Q55: 0.00
A56: мандарины | B56: 118.12 | O56: 0 | P56: 0.00 | Q56: 0.00
A57: куры охлажден. | B57: 187.4 | D57: 104 | F57: 153 | J57: 96 | M57: 99 | O57: 452 | P57: 84.70 | Q57: 37.67
A58: творог | B58: 314.63 | O58: 0 | P58: 0.00 | Q58: 0.00
A59: повидло | O59: 0 | P59: 0.00 | Q59: 0.00
A60: сухари панировочные | B60: 97.09 | C60: 9 | F60: 9 | G60: 9 | K60: 9 | L60: 9 | O60: 45 | P60: 4.37 | Q60: 3.75
P61: =SUM(P8:P60) -> 675.00
A63: стоимость одного дня | C63: =C8*$B8/1000+C9*$B9/1000+C10*$B10/1000+C11*$B11/1000+C12*$B12/1000+C13*$B13/1000+C14*$B14/1000+C15*$B15/1000+C16*$B16+C17*$B17/1000+C18*$B18/1000+C19*$B19/1000+C20*$B20/1000+C21*$B21/1000+C22*$B22/1000+C23*$B23/1000+C24*$B24/1000+C25*$B25/1000+C26*$B26/1000+C27*$B27/1000+C28*$B28/1000+C29*$B29/1000+C30*$B30/500+C31*$B31/1000+C32*$B32/1000+C33*$B33/1000+C34*$B34/1000+C35*$B35/3000+C36*$B36/1000+C37*$B37/425+C38*$B38/1000+C39*$B39/1000+C40*$B40/1000+C41*$B41/1000+C42*$B42/500+C43*$B43/500+C44*$B44/250+C45*$B45/250+C46*$B46/100+C47*$B47+C48*$B48/1000+C49*$B49/1000+C50*$B50/1000+C51*$B51/1000+C52*$B52/1000+C53*$B53/1000+C54*$B54/1000+C55*$B55/1000+C56*$B56/1000+C57*$B57/1000+C58*$B58/1000+C59*$B59/1000+C60*$B60/1000 -> 47.05 | D63: =D8*$B8/1000+D9*$B9/1000+D10*$B10/1000+D11*$B11/1000+D12*$B12/1000+D13*$B13/1000+D14*$B14/1000+D15*$B15/1000+D16*$B16+D17*$B17/1000+D18*$B18/1000+D19*$B19/1000+D20*$B20/1000+D21*$B21/1000+D22*$B22/1000+D23*$B23/1000+D24*$B24/1000+D25*$B25/1000+D26*$B26/1000+D27*$B27/1000+D28*$B28/1000+D29*$B29/1000+D30*$B30/500+D31*$B31/1000+D32*$B32/1000+D33*$B33/1000+D34*$B34/1000+D35*$B35/3000+D36*$B36/1000+D37*$B37/425+D38*$B38/1000+D39*$B39/1000+D40*$B40/1000+D41*$B41/1000+D42*$B42/500+D43*$B43/500+D44*$B44/250+D45*$B45/250+D46*$B46/100+D47*$B47+D48*$B48/1000+D49*$B49/1000+D50*$B50/1000+D51*$B51/1000+D52*$B52/1000+D53*$B53/1000+D54*$B54/1000+D55*$B55/1000+D56*$B56/1000+D57*$B57/1000+D58*$B58/1000+D59*$B59/1000+D60*$B60/1000 -> 46.70 | E63: 48.79 | F63: 57.40 | G63: 48.18 | H63: 95.33 | I63: 53.95 | J63: 33.29 | K63: 71.16 | L63: 43.85 | M63: 45.05 | N63: 84.25 | P63: =SUM(B63:N63)/12 -> 56.2
C65: 1 | D65: 2 | E65: 3 | F65: 4 | G65: 5 | H65: 6 | I65: 7 | J65: 8 | K65: 9 | L65: 10 | M65: 11 | N65: 12
H67: =(C63+D63+E63+F63+G63+H63)/6 -> 57.24 | N67: =(I63+J63+K63+L63+M63+N63)/6 -> 55.26 | P67: =(H67+N67)/2 -> 56.25
G69: =(C63+D63+E63+F63+G63)/5 -> 49.6244054 | M69: =(I63+J63+K63+L63+M63)/5 -> 49.4606087 | P69: =(G69+M69)/2 -> 49.54250705
